fUST/lending_fUST_20250811
["ID","MTS","AMOUNT","RATE_DAILY","PERIOD"]
[378454757,1754871049784,-500.0,0.00022069,2]
[378454758,1754871049795,-500.0,0.00022069,2]
[378454759,1754871049806,-500.0,0.00022069,2]
[378454760,1754871049817,-500.0,0.00022069,2]
[378454761,1754871049830,-500.0,0.00022069,2]
[378454762,1754871049841,-502.11801438,0.00022069,2]
[378454763,1754871049851,-776.58,0.00022155,2]
[378454764,1754871049862,-514.52,0.00022155,2]
[378454765,1754871049873,-1130.59,0.00022155,2]
[378454766,1754871049885,-360.0,0.00022156,2]
[378454767,1754871049896,-150.0,0.00022161,2]
[378454768,1754871049907,-150.0,0.00022161,2]
[378454769,1754871049918,-150.0,0.00022161,2]
[378454770,1754871049928,-636.0,0.00022161,2]
[378454771,1754871049939,-971.0,0.00022161,2]
[378454772,1754871049950,-460.0,0.00022165,2]
[378454773,1754871049960,-460.0,0.00022165,2]
[378454774,1754871049971,-575.89,0.00022165,2]
[378454775,1754871049982,-460.0,0.00022165,2]
[378454776,1754871049993,-460.0,0.00022166,2]
[378454777,1754871050006,-460.0,0.00022166,2]
[378454778,1754871050016,-487.96,0.00022171,2]
[378454779,1754871050027,-460.0,0.00022171,2]
[378454780,1754871050038,-460.0,0.00022171,2]
[378454781,1754871050049,-166.0,0.00022192,7]
[378454782,1754871050060,-168.0,0.00022244,2]
[378454783,1754871050071,-895.1,0.00022263,2]
[378454784,1754871050081,-460.0,0.00022269,2]
[378454785,1754871050092,-460.0,0.00022269,2]
[378454786,1754871050103,-460.0,0.00022269,2]
[378454787,1754871050114,-269.50642028,0.00022269,2]
[378454788,1754871050125,-460.0,0.00022269,2]
[378454789,1754871050136,-460.0,0.00022269,2]
[378454790,1754871050147,-460.0,0.00022269,2]
[378454791,1754871050157,-151.0,0.00022269,7]
[378454792,1754871050168,-151.0,0.00022269,7]
[378454793,1754871050179,-1491.96,0.00022269,2]
[378454794,1754871050189,-460.0,0.00022269,2]
[378454795,1754871050200,-460.0,0.00022269,2]
[378454796,1754871050211,-896.57,0.00022269,2]
[378454797,1754871050221,-460.0,0.0002227,2]
[378454798,1754871050230,-460.0,0.0002227,2]
[378454799,1754871050239,-460.0,0.0002227,2]
[378454800,1754871050248,-500.0,0.00022324,2]
[378454801,1754871050259,-1132.3261331,0.00022324,2]
[378454802,1754871050268,-1000.0,0.00022324,2]
[378454803,1754871050277,-601.0,0.00022342,2]
[378454804,1754871050286,-1000.0,0.00022396,2]
[378454805,1754871050295,-501.96037417,0.00022396,2]
[378454806,1754871050304,-151.0,0.000224,6]
[378454807,1754871050313,-500.0,0.000224,2]
[378454808,1754871050322,-776.58,0.00022429,2]
[378454809,1754871050331,-514.52,0.00022429,2]
[378454810,1754871050340,-1130.59,0.00022429,2]
[378454811,1754871050349,-460.0,0.00022439,2]
[378454812,1754871050362,-460.0,0.00022439,2]
[378454813,1754871050376,-575.89,0.00022439,2]
[378454814,1754871050386,-460.0,0.00022439,2]
[378454815,1754871050395,-530.07,0.0002244,2]
[378454816,1754871050404,-460.0,0.0002244,2]
[378454817,1754871050414,-168.0,0.00022441,2]
[378454818,1754871050423,-460.0,0.00022445,2]
[378454819,1754871050432,-503.49,0.00022445,2]
[378454820,1754871050442,-693.24892165,0.00022464,2]
[378454821,1754871050453,-2408.80588948,0.00022464,2]
[378454822,1754871050463,-895.1,0.00022526,2]
[378454823,1754871050473,-168.0,0.00022533,2]
[378454824,1754871050482,-460.0,0.00022543,2]
[378454825,1754871050667,-292.36120185,0.00022543,2]
[378454826,1754871050683,-460.0,0.00022543,2]
[378454827,1754871050693,-460.0,0.00022543,2]
[378454828,1754871050702,-460.0,0.00022543,2]
[378454829,1754871050711,-460.0,0.00022543,2]
[378454830,1754871050722,-1491.96,0.00022543,2]
[378454831,1754871050732,-460.0,0.00022543,2]
[378454832,1754871050742,-460.0,0.00022543,2]
[378454833,1754871050752,-896.57,0.00022543,2]
[378454834,1754871050763,-460.0,0.00022544,2]
[378454835,1754871050773,-460.0,0.00022544,2]
[378454836,1754871050783,-460.0,0.00022544,2]
[378454837,1754871050792,-231.38044112,0.00022548,7]
[378454838,1754871050802,-1000.0,0.00022573,2]
[378454839,1754871050811,-168.0,0.00022584,2]
[378454840,1754871050822,-151.0,0.00022592,7]
[378454841,1754871050831,-64099.6366542,0.000226,5]
[378454842,1754871050841,-151.0,0.000226,7]
[378454843,1754871050850,-151.0,0.000226,7]
[378454844,1754871050860,-151.0,0.000226,7]
[378454845,1754871050869,-1000.0,0.00022617,2]
[378454846,1754871050879,-1000.0,0.00022617,2]
[378454847,1754871050888,-718.06276959,0.00022617,2]
[378454848,1754871050898,-1000.0,0.00022617,2]
[378454849,1754871050907,-1000.0,0.00022617,2]
[378454850,1754871050916,-1000.0,0.00022617,2]
[378454851,1754871050925,-1000.0,0.00022617,2]
[378454852,1754871050934,-1000.0,0.00022617,2]
[378454853,1754871050943,-500.47453045,0.00022617,2]
[378454854,1754871050952,-1000.0,0.00022617,2]
[378454855,1754871050962,-1000.0,0.00022617,2]
[378454856,1754871050971,-1000.0,0.00022617,2]
[378454857,1754871050980,-1000.62900736,0.00022617,2]
[378454858,1754871050990,-500.0,0.00022617,2]
[378454859,1754871050999,-500.0,0.00022617,2]
[378454860,1754871051012,-1000.0,0.00022617,2]
[378454861,1754871051021,-500.0,0.00022617,2]
[378454862,1754871051030,-983.49138357,0.00022617,2]
[378454863,1754871051183,-460.0,0.00020237,2]
[378454864,1754871051192,-151.0,0.00020239,2]
[378454865,1754871051202,-39.29398231,0.00020239,2]
[378454866,1754871051213,-111.70601769,0.00020239,2]
[378454867,1754871051222,-9380.24654843,0.00020273,2]
[378454868,1754871051233,-4860.95178419,0.00020273,2]
[378454870,1754871173891,204.63058983,0.00020038,2]
[378454871,1754871178753,2577.86962531,0.000199,2]
[378454873,1754871274228,204.63058983,0.00020029,2]
[378454878,1754871350960,24900.0,0.00019138,2]
[378454880,1754871361183,2367.0400475,0.000199,2]
[378454881,1754871460824,540.0,0.00030136,120]
[378454882,1754871539661,175.32288,0.00013699,2]
[378454892,1754871559009,2288.20815069,0.000199,2]
[378454896,1754871612303,1910.89173231,0.00020035,2]
[378454898,1754871735560,2212.14370502,0.000199,2]
[378454899,1754871779500,168.679228,0.00019863,2]
[378454900,1754871928698,2140.84037879,0.000199,2]
[378454901,1754871936442,161.0,0.0002,5]
[378454903,1754871971458,250.0,0.00031446,30]
[378454904,1754871971950,250.0,0.00031446,30]
[378454905,1754871972523,250.0,0.00031446,30]
[378454906,1754871973047,304.87274,0.00031446,30]
[378454910,1754872043084,-1607.09424111,0.00020048,2]
[378454911,1754872043104,-1200.0,0.00020122,2]
[378454912,1754872043124,-300.0,0.00020122,2]
[378454913,1754872043144,-4532.84122792,0.00020123,2]
[378454916,1754872116388,1487.0619451,0.00018,2]
[378454917,1754872120356,173.200277,0.00031446,120]
[378454925,1754872141934,2068.57373614,0.000199,2]
[378454927,1754872183655,1071.39616074,0.00020038,2]
[378455024,1754872237309,-154.86697646,0.00020121,2]
[378455025,1754872237319,-383.60172348,0.00020121,2]
[378455026,1754872237328,-111.75614567,0.00020121,2]
[378455027,1754872237362,-388.24385433,0.00020121,2]
[378455028,1754872237372,-500.0,0.00020121,2]
[378455029,1754872237383,-197.29655333,0.00020121,2]
[378455094,1754872238705,-302.70344667,0.00020121,2]
[378455097,1754872238714,-500.0,0.00020121,2]
[378455100,1754872238723,-500.0,0.00020121,2]
[378455102,1754872238733,-500.0,0.00020121,2]
[378455104,1754872238743,-500.0,0.00020121,2]
[378455106,1754872238755,-500.0,0.00020121,2]
[378455108,1754872238765,-500.0,0.00020121,2]
[378455110,1754872238774,-500.0,0.00020121,2]
[378455112,1754872238784,-500.0,0.00020121,2]
[378455114,1754872238794,-500.0,0.00020121,2]
[378455116,1754872238805,-500.0,0.00020121,2]
[378455118,1754872238814,-500.0,0.00020121,2]
[378455120,1754872238824,-500.0,0.00020121,2]
[378455122,1754872238834,-500.0,0.00020121,2]
[378455124,1754872238844,-500.0,0.00020121,2]
[378455126,1754872238853,-512.48226875,0.00020121,2]
[378455128,1754872238863,-500.0,0.00020121,2]
[378455130,1754872238872,-500.0,0.00020121,2]
[378455132,1754872238883,-500.0,0.00020121,2]
[378455135,1754872238893,-500.0,0.00020121,2]
[378455138,1754872238903,-500.0,0.00020121,2]
[378455140,1754872238913,-467.99821723,0.00020121,2]
[378455142,1754872238923,-500.0,0.00020121,2]
[378455144,1754872238933,-319.79965156,0.00020121,2]
[378455146,1754872238942,-500.0,0.00020121,2]
[378455148,1754872238951,-500.0,0.00020121,2]
[378455150,1754872238962,-500.0,0.00020121,2]
[378455152,1754872238972,-500.0,0.00020121,2]
[378455154,1754872238982,-500.0,0.00020121,2]
[378455156,1754872238991,-500.0,0.00020121,2]
[378455158,1754872239001,-500.0,0.00020121,2]
[378455160,1754872239010,-500.0,0.00020121,2]
[378455162,1754872239020,-500.0,0.00020121,2]
[378455164,1754872239029,-500.0,0.00020121,2]
[378455166,1754872239039,-500.0,0.00020121,2]
[378455168,1754872239048,-500.0,0.00020121,2]
[378455170,1754872239058,-235.55938956,0.00020121,2]
[378455172,1754872239067,-551.2372821,0.00020121,2]
[378455174,1754872239076,-551.2372821,0.00020121,2]
[378455176,1754872239085,-551.2372821,0.00020121,2]
[378455178,1754872239094,-308.80092656,0.00020121,2]
[378455180,1754872239106,-242.43635554,0.00020121,2]
[378455182,1754872239116,-551.2372821,0.00020121,2]
[378455184,1754872239125,-551.2372821,0.00020121,2]
[378455186,1754872239134,-551.2372821,0.00020121,2]
[378455188,1754872239143,-551.2372821,0.00020121,2]
[378455190,1754872239153,-551.2372821,0.00020121,2]
[378455192,1754872239162,-551.2372821,0.00020121,2]
[378455194,1754872239171,-551.2372821,0.00020121,2]
[378455196,1754872239180,-551.2372821,0.00020121,2]
[378455198,1754872239190,-551.2372821,0.00020121,2]
[378455200,1754872239199,-551.2372821,0.00020121,2]
[378455202,1754872239209,-551.2372821,0.00020121,2]
[378455204,1754872239218,-551.2372821,0.00020121,2]
[378455206,1754872239227,-551.2372821,0.00020121,2]
[378455208,1754872239236,-551.2372821,0.00020121,2]
[378455210,1754872239245,-551.2372821,0.00020121,2]
[378455212,1754872239255,-300.0,0.00020121,2]
[378455214,1754872239264,-300.0,0.00020121,2]
[378455216,1754872239273,-300.0,0.00020121,2]
[378455218,1754872239282,-300.0,0.00020121,2]
[378455220,1754872239291,-1200.0,0.00020121,2]
[378455222,1754872239301,-460.0,0.00020121,2]
[378455224,1754872239311,-251.09832518,0.00020121,2]
[378455226,1754872239320,-50000.0,0.00020122,2]
[378455228,1754872239329,-460.0,0.00020122,2]
[378455230,1754872239339,-461.45286395,0.00020122,2]
[378455232,1754872239349,-460.0,0.00020122,2]
[378455234,1754872239358,-460.0,0.00020122,2]
[378455236,1754872239368,-460.0,0.00020122,2]
[378455239,1754872239378,-460.0,0.00020122,2]
[378455241,1754872239387,-516.12082053,0.00020122,2]
[378455243,1754872239396,-460.0,0.00020122,2]
[378455245,1754872239406,-493.05762249,0.00020122,2]
[378455247,1754872239415,-460.0,0.00020122,2]
[378455249,1754872239424,-463.38325946,0.00020123,2]
[378455251,1754872239434,-460.0,0.00020123,2]
[378455253,1754872239443,-460.0,0.00020123,2]
[378455255,1754872239452,-460.0,0.00020123,2]
[378455257,1754872239461,-460.0,0.00020123,2]
[378455259,1754872239470,-460.0,0.00020123,2]
[378455261,1754872239479,-460.0,0.00020123,2]
[378455263,1754872239489,-460.0,0.00020123,2]
[378455265,1754872239498,-460.0,0.00020124,2]
[378455267,1754872239507,-460.0,0.00020124,2]
[378455269,1754872239517,-460.0,0.00020124,2]
[378455271,1754872239526,-460.0,0.00020124,2]
[378455273,1754872239535,-460.0,0.00020124,2]
[378455275,1754872239544,-397.01377283,0.00020124,2]
[378455277,1754872239554,-752.35,0.00020124,2]
[378455279,1754872239563,-460.0,0.00020124,2]
[378455281,1754872239573,-460.0,0.00020124,2]
[378455283,1754872239582,-460.0,0.00020124,2]
[378455285,1754872239591,-222.08253314,0.00020124,2]
[378455287,1754872239600,-505.18,0.00020124,2]
[378455289,1754872239609,-460.0,0.00020124,2]
[378455291,1754872239618,-460.0,0.00020124,2]
[378455293,1754872239627,-461.68137446,0.00020124,2]
[378455295,1754872239637,-460.0,0.00020124,2]
[378455297,1754872239647,-460.0,0.00020124,2]
[378455299,1754872239655,-460.0,0.00020124,2]
[378455301,1754872239665,-460.0,0.00020124,2]
[378455303,1754872239674,-460.0,0.00020124,2]
[378455305,1754872239683,-465.5345339,0.00020124,2]
[378455307,1754872239692,-460.0,0.00020124,2]
[378455309,1754872239702,-460.0,0.00020124,2]
[378455311,1754872239712,-460.0,0.00020124,2]
[378455312,1754872239721,-864.89326362,0.00020125,2]
[378455314,1754872239730,-460.0,0.00020125,2]
[378455316,1754872239740,-460.0,0.00020125,2]
[378455318,1754872239750,-1183.11,0.00020125,2]
[378455320,1754872239763,-460.0,0.00020125,2]
[378455322,1754872239772,-151.32157898,0.00020127,2]
[378455324,1754872239781,-151.17786136,0.00020127,2]
[378455326,1754872239791,-500.0,0.00020127,2]
[378455329,1754872239803,-500.0,0.00020127,2]
[378455331,1754872239813,-500.0,0.00020127,2]
[378455332,1754872239823,-500.0,0.00020127,2]
[378455334,1754872239832,-500.0,0.00020127,2]
[378455336,1754872239842,-500.0,0.00020127,2]
[378455338,1754872239851,-500.0,0.00020127,2]
[378455340,1754872239860,-500.0,0.00020127,2]
[378455342,1754872239870,-500.0,0.00020127,2]
[378455345,1754872239880,-500.0,0.00020127,2]
[378455347,1754872239889,-500.0,0.00020127,2]
[378455349,1754872239899,-500.0,0.00020127,2]
[378455351,1754872239909,-500.0,0.00020127,2]
[378455353,1754872239919,-500.0,0.00020127,2]
[378455355,1754872239928,-500.0,0.00020127,2]
[378455357,1754872239937,-500.0,0.00020127,2]
[378455359,1754872239946,-500.0,0.00020127,2]
[378455360,1754872239956,-204.73339187,0.00020127,2]
[378455362,1754872239965,-151.0,0.00020127,2]
[378455365,1754872239976,-151.0,0.00020127,2]
[378455367,1754872239986,-151.0,0.00020127,2]
[378455369,1754872239995,-151.0,0.00020127,2]
[378455371,1754872240005,-151.0,0.00020127,2]
[378455373,1754872240015,-151.0,0.00020127,2]
[378455375,1754872240024,-151.0,0.00020127,2]
[378455377,1754872240033,-151.0,0.00020127,2]
[378455379,1754872240043,-151.0,0.00020127,2]
[378455381,1754872240053,-283.13844623,0.00020127,2]
[378455383,1754872240063,-151.0,0.00020127,2]
[378455385,1754872240072,-151.0,0.00020127,2]
[378455387,1754872240081,-151.0,0.00020127,2]
[378455390,1754872240091,-151.0,0.00020127,2]
[378455393,1754872240100,-151.0,0.00020127,2]
[378455396,1754872240110,-151.0,0.00020127,2]
[378455398,1754872240119,-151.0,0.00020127,2]
[378455400,1754872240129,-1126.25,0.00020127,3]
[378455402,1754872240138,-563.13,0.00020127,3]
[378455404,1754872240147,-281.56,0.00020127,3]
[378455406,1754872240156,-844.72,0.00020127,3]
[378455408,1754872240165,-465.60621705,0.00020135,2]
[378455410,1754872240175,-492.81380739,0.00020135,2]
[378455412,1754872240184,-460.0,0.00020135,2]
[378455414,1754872240193,-460.0,0.00020135,2]
[378455416,1754872240203,-460.0,0.00020135,2]
[378455418,1754872240212,-460.0,0.00020135,2]
[378455420,1754872240222,-460.0,0.00020135,2]
[378455422,1754872240231,-460.0,0.00020135,2]
[378455424,1754872240240,-460.0,0.00020135,2]
[378455426,1754872240250,-460.0,0.00020135,2]
[378455428,1754872240259,-460.0,0.00020135,2]
[378455430,1754872240268,-460.0,0.00020135,2]
[378455432,1754872240277,-460.0,0.00020135,2]
[378455434,1754872240287,-460.0,0.00020135,2]
[378455436,1754872240296,-460.0,0.00020135,2]
[378455438,1754872240306,-460.0,0.00020135,2]
[378455440,1754872240315,-460.0,0.00020135,2]
[378455442,1754872240324,-462.65085392,0.00020135,2]
[378455444,1754872240334,-460.0,0.00020135,2]
[378455446,1754872240343,-460.0,0.00020135,2]
[378455448,1754872240352,-460.0,0.00020135,2]
[378455450,1754872240361,-460.0,0.00020135,2]
[378455452,1754872240371,-460.0,0.00020135,2]
[378455454,1754872240380,-460.0,0.00020135,2]
[378455456,1754872240390,-460.0,0.00020135,2]
[378455458,1754872240399,-460.0,0.00020135,2]
[378455460,1754872240408,-500.0,0.00020135,2]
[378455462,1754872240417,-500.0,0.00020135,2]
[378455464,1754872240426,-500.0,0.00020135,2]
[378455466,1754872240436,-460.0,0.00020135,2]
[378455468,1754872240445,-460.0,0.00020135,2]
[378455470,1754872240454,-460.0,0.00020135,2]
[378455472,1754872240465,-460.0,0.00020135,2]
[378455474,1754872240475,-460.0,0.00020135,2]
[378455476,1754872240485,-557.21076336,0.00020135,2]
[378455478,1754872240495,-464.239958,0.00020135,2]
[378455479,1754872240504,-460.0,0.00020135,2]
[378455481,1754872240513,-460.0,0.00020135,2]
[378455483,1754872240523,-460.0,0.00020135,2]
[378455485,1754872240532,-460.0,0.00020135,2]
[378455487,1754872240542,-460.0,0.00020135,2]
[378455489,1754872240552,-460.0,0.00020135,2]
[378455491,1754872240561,-460.0,0.00020135,2]
[378455493,1754872240571,-460.0,0.00020135,2]
[378455495,1754872240580,-460.39430981,0.00020135,2]
[378455497,1754872240589,-460.0,0.00020135,2]
[378455499,1754872240598,-460.0,0.00020135,2]
[378455501,1754872240607,-460.0,0.00020135,2]
[378455503,1754872240616,-460.0,0.00020135,2]
[378455505,1754872240625,-460.0,0.00020135,2]
[378455507,1754872240635,-460.0,0.00020135,2]
[378455509,1754872240645,-460.0,0.00020135,2]
[378455511,1754872240654,-460.0,0.00020135,2]
[378455513,1754872240663,-460.0,0.00020135,2]
[378455515,1754872240672,-460.0,0.00020135,2]
[378455517,1754872240682,-621.15,0.00020135,2]
[378455519,1754872240691,-460.0,0.00020135,2]
[378455521,1754872240700,-460.0,0.00020135,2]
[378455523,1754872240709,-460.0,0.00020135,2]
[378455525,1754872240719,-460.0,0.00020135,2]
[378455527,1754872240728,-460.0,0.00020135,2]
[378455529,1754872240738,-460.0,0.00020135,2]
[378455531,1754872240749,-460.0,0.00020135,2]
[378455533,1754872240765,-460.0,0.00020135,2]
[378455535,1754872240774,-460.0,0.00020135,2]
[378455537,1754872240784,-460.0,0.00020135,2]
[378455539,1754872240793,-460.0,0.00020135,2]
[378455542,1754872240806,-460.0,0.00020135,2]
[378455544,1754872240816,-460.0,0.00020135,2]
[378455546,1754872240825,-500.0,0.00020135,2]
[378455548,1754872240835,-647.49188425,0.00020135,2]
[378455550,1754872240845,-460.0,0.00020135,2]
[378455551,1754872240854,-460.0,0.00020135,2]
[378455554,1754872240865,-460.0,0.00020135,2]
[378455556,1754872240874,-460.0,0.00020135,2]
[378455558,1754872240883,-460.0,0.00020135,2]
[378455560,1754872240894,-460.0,0.00020135,2]
[378455562,1754872240904,-460.0,0.00020135,2]
[378455564,1754872240913,-460.0,0.00020135,2]
[378455566,1754872240922,-460.0,0.00020135,2]
[378455568,1754872240932,-460.0,0.00020135,2]
[378455570,1754872240941,-460.0,0.00020135,2]
[378455572,1754872240950,-460.0,0.00020135,2]
[378455574,1754872240959,-460.0,0.00020135,2]
[378455576,1754872240968,-460.0,0.00020135,2]
[378455578,1754872240977,-460.0,0.00020135,2]
[378455592,1754872241112,-200.0,0.00020135,10]
[378455594,1754872241122,-460.0,0.00020135,2]
[378455596,1754872241132,-200.0,0.00020135,10]
[378455598,1754872241141,-200.0,0.00020135,10]
[378455600,1754872241151,-460.0,0.00020135,2]
[378455602,1754872241161,-200.0,0.00020135,10]
[378455604,1754872241171,-200.0,0.00020135,10]
[378455606,1754872241181,-460.0,0.00020135,2]
[378455609,1754872241191,-200.0,0.00020135,10]
[378455610,1754872241200,-200.0,0.00020135,10]
[378455612,1754872241209,-460.0,0.00020135,2]
[378455614,1754872241219,-200.0,0.00020135,10]
[378455616,1754872241229,-200.0,0.00020135,10]
[378455618,1754872241238,-200.0,0.00020135,10]
[378455620,1754872241247,-460.0,0.00020135,2]
[378455622,1754872241260,-460.0,0.00020135,2]
[378455623,1754872241279,-460.0,0.00020135,2]
[378455624,1754872241290,-460.0,0.00020135,2]
[378455625,1754872241300,-460.0,0.00020135,2]
[378455626,1754872241311,-460.0,0.00020135,2]
[378455627,1754872241320,-460.0,0.00020135,2]
[378455628,1754872241329,-460.0,0.00020135,2]
[378455629,1754872241340,-460.0,0.00020135,2]
[378455630,1754872241350,-460.0,0.00020135,2]
[378455631,1754872241360,-500.0,0.00020135,2]
[378455632,1754872241370,-507.53893718,0.00020135,2]
[378455633,1754872241379,-460.0,0.00020135,2]
[378455634,1754872241389,-460.0,0.00020135,2]
[378455635,1754872241410,-460.0,0.00020135,2]
[378455636,1754872241419,-460.0,0.00020135,2]
[378455637,1754872241429,-460.0,0.00020135,2]
[378455638,1754872241439,-466.04529028,0.00020135,2]
[378455639,1754872241448,-460.0,0.00020135,2]
[378455640,1754872241457,-460.0,0.00020135,2]
[378455641,1754872241466,-460.0,0.00020135,2]
[378455642,1754872241475,-460.0,0.00020135,2]
[378455644,1754872241484,-460.0,0.00020135,2]
[378455645,1754872241493,-460.0,0.00020135,2]
[378455646,1754872241503,-460.0,0.00020135,2]
[378455647,1754872241512,-460.0,0.00020135,2]
[378455648,1754872241521,-460.0,0.00020135,2]
[378455650,1754872241530,-460.55373086,0.00020136,2]
[378455652,1754872241539,-500.0,0.00020136,2]
[378455654,1754872241549,-500.0,0.00020136,2]
[378455656,1754872241560,-500.0,0.00020136,2]
[378455658,1754872241571,-461.26805963,0.00020137,2]
[378455660,1754872241581,-465.01664378,0.00020137,2]
[378455662,1754872241591,-399.34311669,0.00020137,2]
[378455664,1754872241601,-460.0,0.00020137,2]
[378455666,1754872241610,-460.0,0.00020137,2]
[378455668,1754872241619,-460.0,0.00020137,2]
[378455670,1754872241629,-460.0,0.00020137,2]
[378455672,1754872241639,-460.0,0.00020137,2]
[378455674,1754872241649,-460.0,0.00020137,2]
[378455676,1754872241659,-460.0,0.00020137,2]
[378455678,1754872241669,-460.0,0.00020137,2]
[378455680,1754872241678,-460.0,0.00020137,2]
[378455682,1754872241688,-460.0,0.00020137,2]
[378455684,1754872241697,-460.0,0.00020137,2]
[378455686,1754872241717,-460.0,0.00020137,2]
[378455688,1754872241726,-460.0,0.00020137,2]
[378455690,1754872241736,-1000.0,0.00020137,2]
[378455692,1754872241745,-460.0,0.00020137,2]
[378455694,1754872241758,-460.0,0.00020137,2]
[378455696,1754872241767,-460.0,0.00020137,2]
[378455698,1754872241776,-460.0,0.00020137,2]
[378455700,1754872241785,-460.0,0.00020137,2]
[378455702,1754872241794,-461.1033454,0.00020137,2]
[378455704,1754872241804,-460.0,0.00020137,2]
[378455706,1754872241814,-460.0,0.00020137,2]
[378455708,1754872241823,-460.0,0.00020137,2]
[378455710,1754872241833,-460.0,0.00020137,2]
[378455712,1754872241843,-460.0,0.00020137,2]
[378455714,1754872241852,-461.09330328,0.00020137,2]
[378455716,1754872241861,-460.0,0.00020137,2]
[378455718,1754872241871,-460.0,0.00020137,2]
[378455720,1754872241880,-460.0,0.00020137,2]
[378455722,1754872241889,-460.0,0.00020137,2]
[378455724,1754872241899,-460.0,0.00020137,2]
[378455726,1754872241909,-460.0,0.00020137,2]
[378455728,1754872241919,-460.0,0.00020137,2]
[378455730,1754872241928,-460.0,0.00020137,2]
[378455732,1754872241939,-460.0,0.00020137,2]
[378455734,1754872241948,-460.0,0.00020137,2]
[378455735,1754872241958,-460.0,0.00020137,2]
[378455737,1754872241967,-460.0,0.00020137,2]
[378455739,1754872241976,-460.0,0.00020137,2]
[378455741,1754872241986,-460.0,0.00020137,2]
[378455743,1754872241995,-460.0,0.00020137,2]
[378455745,1754872242004,-460.0,0.00020137,2]
[378455747,1754872242013,-460.0,0.00020137,2]
[378455749,1754872242022,-460.0,0.00020137,2]
[378455751,1754872242032,-460.0,0.00020137,2]
[378455753,1754872242041,-460.0,0.00020137,2]
[378455755,1754872242050,-460.0,0.00020137,2]
[378455757,1754872242061,-460.0,0.00020137,2]
[378455759,1754872242070,-460.0,0.00020137,2]
[378455761,1754872242079,-460.0,0.00020137,2]
[378455763,1754872242089,-460.0,0.00020137,2]
[378455765,1754872242098,-460.0,0.00020137,2]
[378455767,1754872242108,-460.0,0.00020137,2]
[378455769,1754872242118,-460.0,0.00020137,2]
[378455771,1754872242126,-396.62771672,0.00020137,2]
[378455773,1754872242136,-460.0,0.00020137,2]
[378455775,1754872242145,-460.0,0.00020137,2]
[378455777,1754872242154,-460.0,0.00020137,2]
[378455779,1754872242163,-461.89831955,0.00020137,2]
[378455781,1754872242172,-460.0,0.00020137,2]
[378455783,1754872242182,-460.0,0.00020137,2]
[378455786,1754872242191,-460.0,0.00020137,2]
[378455788,1754872242201,-460.0,0.00020137,2]
[378455789,1754872242210,-460.0,0.00020137,2]
[378455791,1754872242219,-460.0,0.00020137,2]
[378455793,1754872242228,-461.33554342,0.00020137,2]
[378455795,1754872242237,-460.0,0.00020137,2]
[378455797,1754872242246,-460.0,0.00020137,2]
[378455799,1754872242255,-460.0,0.00020137,2]
[378455802,1754872242265,-460.0,0.00020137,2]